[Event "Champions Showdown Kings Rapid 2019-C"]
[Site "Saint Louis"]
[Date "2019.02.21"]
[Round "5.3"]
[White "Navara, David"]
[Black "So, Wesley"]
[Result "1-0"]
[ECO "D41"]
[WhiteElo "2738"]
[BlackElo "2765"]
[Annotator "ChessBase"]
[PlyCount "65"]
[EventDate "2019.02.09"]
[EventType "match (rapid)"]
[EventCountry "USA"]
[SourceTitle "playchess.com"]
[Source "ChessBase"]
[SourceQuality "1"]
[TimeControl "900+10"]

1. d4 {[%emt 0:00:00]} Nf6 {[%emt 0:00:00]} 2. c4 {[%emt 0:00:00]} e6 {[%emt 0:00:00]} 3. Nf3 {[%emt 0:00:00]} d5 {[%emt 0:00:00]} 4. Nc3 {[%emt 0:00:00]} c5 {[%emt 0:00:00]} 5. cxd5 {[%emt 0:00:29]} Nxd5 {[%emt 0:00:09]} 6. e4 {[%emt 0:00:05]} Nxc3 {[%emt 0:00:02]} 7. bxc3 {[%emt 0:00:01]} cxd4 {[%emt 0:00:01]} 8. cxd4 {[%emt 0:00:01]} Bb4+ {[%emt 0:00:01]} 9. Bd2 {[%emt 0:00:01]} Bxd2+ {[%emt 0:00:01]} 10. Qxd2 {[%emt 0:00:02]} O-O {[%emt 0:00:02]} 11. Bc4 {[%emt 0:00:04]} Nd7 {[%emt 0:00:02]} 12. O-O {[%emt 0:00:03]} b6 {[%emt 0:00:01]} 13. Rad1 {[%emt 0:00:13]} Bb7 {[%emt 0:00:01]} 14. Rfe1 {[%emt 0:00:02]} Rc8 {[%emt 0:00:02]} 15. Bb3 {[%emt 0:00:01]} Re8 {[%emt 0:00:04]} 16. h3 {[%emt 0:00:25]} Nf6 {[%emt 0:00:57]} 17. Qf4 {[%emt 0:00:11]} Nh5 {[%emt 0:00:01]} 18. Qh2 {[%emt 0:00:40]} h6 {[%emt 0:00:03]} 19. h4 {[%emt 0:03:01]} a6 {[%emt 0:06:27]} 20. Ne5 {[%emt 0:00:32]} Nf6 {[%emt 0:00:59]} 21. Qf4 {[%emt 0:00:05]} Qd6 {[%emt 0:01:12]} 22. g4 {[%emt 0:01:27]} Re7 {[%emt 0:01:30]} 23. g5 {[%emt 0:00:02]} hxg5 {[%emt 0:00:13]} 24. hxg5 {[%emt 0:00:02]} Nh5 {[%emt 0:00:24]} 25. Qe3 {[%emt 0:06:36]} g6 {[%emt 0:00:03]} 26. Rd3 {[%emt 0:00:01]} Rec7 {[%emt 0:02:44]} 27. Kg2 {[%emt 0:03:01]} a5 {[%emt 0:00:29]} 28. Bd1 {[%emt 0:00:51]} Ba6 {[%emt 0:00:17]} 29. Bxh5 {[%emt 0:01:04]} Bxd3 {[%emt 0:00:30]} 30. Bf3 {[%emt 0:00:02]} Rd8 {[%emt 0:00:41]} 31. Rh1 {[%emt 0:00:37]} Bf1+ {[%emt 0:03:01]} 32. Kxf1 {[%emt 0:00:13]} Qxd4 {[%emt 0:00:09]} 33. Qf4 {[%emt 0:00:01]} 1-0